[Event "*** Titled Tuesday Blitz AM"]
[Site "Chess.com"]
[Date "2020.01.07"]
[Round "3"]
[White "FairChess_on_YouTube"]
[Black "Bulldog167"]
[Result "1-0"]
[WhiteElo "3005"]
[BlackElo "2725"]
[TimeControl "180+2"]
[EndTime "9:36:50 PST"]
[Termination "FairChess_on_YouTube won by resignation"]

1. d4 {[%clk 0:03:01.9]} 1... e6 {[%clk 0:03:00.7]} 2. Nf3 {[%clk 0:03:02.1]}
2... Nf6 {[%clk 0:03:01.4]} 3. c4 {[%clk 0:03:02.5]} 3... Bb4+ {[%clk
0:03:00.6]} 4. Nbd2 {[%clk 0:03:03]} 4... O-O {[%clk 0:03:00.2]} 5. a3 {[%clk
0:03:03.8]} 5... Bxd2+ {[%clk 0:03:01.3]} 6. Bxd2 {[%clk 0:03:01.1]} 6... b6
{[%clk 0:02:56.1]} 7. Bg5 {[%clk 0:03:01]} 7... Bb7 {[%clk 0:02:54.4]} 8. e3
{[%clk 0:03:02]} 8... h6 {[%clk 0:02:54.5]} 9. Bh4 {[%clk 0:03:02.6]} 9... d6
{[%clk 0:02:53.7]} 10. Bd3 {[%clk 0:03:03.2]} 10... Nbd7 {[%clk 0:02:53.1]} 11.
O-O {[%clk 0:03:03.2]} 11... Qe7 {[%clk 0:02:32]} 12. Qe2 {[%clk 0:02:52.4]}
12... e5 {[%clk 0:02:31.8]} 13. e4 {[%clk 0:02:46.3]} 13... a5 {[%clk 0:02:04]}
14. Rae1 {[%clk 0:02:44.6]} 14... a4 {[%clk 0:02:02.9]} 15. Bb1 {[%clk
0:02:40.4]} 15... Qe6 {[%clk 0:02:00.3]} 16. d5 {[%clk 0:02:38.2]} 16... Qe8
{[%clk 0:01:54.9]} 17. Nd2 {[%clk 0:02:38.8]} 17... g5 {[%clk 0:01:43.4]} 18.
Bg3 {[%clk 0:02:39.4]} 18... Kg7 {[%clk 0:01:44.6]} 19. h4 {[%clk 0:02:35]}
19... Ng8 {[%clk 0:01:41.7]} 20. f3 {[%clk 0:02:12.7]} 20... Ne7 {[%clk
0:01:38.9]} 21. Kf2 {[%clk 0:02:11.8]} 21... Nc5 {[%clk 0:01:29.1]} 22. Rh1
{[%clk 0:02:12]} 22... Ng6 {[%clk 0:01:18.2]} 23. Nf1 {[%clk 0:02:10.8]} 23...
Nf4 {[%clk 0:01:15.2]} 24. Qd2 {[%clk 0:02:09.1]} 24... Bc8 {[%clk 0:00:41.2]}
25. Ne3 {[%clk 0:02:09.1]} 25... f6 {[%clk 0:00:41.4]} 26. Rh2 {[%clk
0:02:06.9]} 26... Bd7 {[%clk 0:00:40.8]} 27. Reh1 {[%clk 0:02:07.6]} 27... Qg6
{[%clk 0:00:41.8]} 28. Nf5+ {[%clk 0:02:05.1]} 28... Bxf5 {[%clk 0:00:13.8]} 29.
exf5 {[%clk 0:02:07]} 29... Qf7 {[%clk 0:00:13]} 30. hxg5 {[%clk 0:02:07.5]}
30... fxg5 {[%clk 0:00:14.9]} 31. Rxh6 {[%clk 0:02:05.9]} 31... Rh8 {[%clk
0:00:14.2]} 32. f6+ {[%clk 0:01:56.7]} 32... Qxf6 {[%clk 0:00:13.7]} 33. Rxf6
{[%clk 0:01:57.6]} 33... Rxh1 {[%clk 0:00:15.3]} 34. Bxf4 {[%clk 0:01:58.6]}
34... gxf4 {[%clk 0:00:08.9]} 35. Rg6+ {[%clk 0:01:56.6]} 35... Kf7 {[%clk
0:00:09.6]} 36. Qc2 {[%clk 0:01:55.9]} 36... e4 {[%clk 0:00:08.4]} 37. Rg4
{[%clk 0:01:52.1]} 37... Nd3+ {[%clk 0:00:09.2]} 38. Ke2 {[%clk 0:01:53.6]}
38... Re1+ {[%clk 0:00:09.4]} 39. Kd2 {[%clk 0:01:54.2]} 39... Rf1 {[%clk
0:00:06.9]} 40. Rxf4+ {[%clk 0:01:22.8]} 40... Nxf4 {[%clk 0:00:08.6]} 41. Qxe4
{[%clk 0:01:23.8]} 41... Rxb1 {[%clk 0:00:02.5]} 42. Qxf4+ {[%clk 0:01:16.5]}
42... Kg7 {[%clk 0:00:02.2]} 43. Qg5+ {[%clk 0:01:17.4]} 43... Kh8 {[%clk
0:00:03.8]} 1-0

[Event "*** Titled Tuesday Blitz AM"]
[Site "Chess.com"]
[Date "2020.01.07"]
[Round "3"]
[White "albi1999"]
[Black "MITerryble"]
[Result "0-1"]
[WhiteElo "2519"]
[BlackElo "2938"]
[TimeControl "180+2"]
[EndTime "9:36:56 PST"]
[Termination "MITerryble won by resignation"]

1. d4 {[%clk 0:03:01.9]} 1... e6 {[%clk 0:02:59.9]} 2. c4 {[%clk 0:03:01.3]}
2... Bb4+ {[%clk 0:03:00.6]} 3. Bd2 {[%clk 0:03:01.6]} 3... Qe7 {[%clk
0:03:00.6]} 4. g3 {[%clk 0:03:02.4]} 4... Nc6 {[%clk 0:03:00.9]} 5. Nf3 {[%clk
0:03:00.4]} 5... Nf6 {[%clk 0:03:01.6]} 6. e3 {[%clk 0:03:00.4]} 6... d5 {[%clk
0:03:00.6]} 7. Qc2 {[%clk 0:02:56.8]} 7... O-O {[%clk 0:03:00.9]} 8. Bg2 {[%clk
0:02:57.4]} 8... Ne4 {[%clk 0:02:56.9]} 9. O-O {[%clk 0:02:55.8]} 9... Nxd2
{[%clk 0:02:57.9]} 10. Nbxd2 {[%clk 0:02:56.3]} 10... Qd8 {[%clk 0:02:52.7]} 11.
Rfd1 {[%clk 0:02:53.6]} 11... Ne7 {[%clk 0:02:48]} 12. a3 {[%clk 0:02:50.8]}
12... Bxd2 {[%clk 0:02:47.6]} 13. Nxd2 {[%clk 0:02:49]} 13... c6 {[%clk
0:02:48.3]} 14. b4 {[%clk 0:02:43.5]} 14... b6 {[%clk 0:02:49.1]} 15. e4 {[%clk
0:02:43.8]} 15... Bb7 {[%clk 0:02:50.2]} 16. Rac1 {[%clk 0:02:44.2]} 16... Rc8
{[%clk 0:02:40.2]} 17. Qa4 {[%clk 0:02:45.1]} 17... a6 {[%clk 0:02:41.3]} 18.
Qb3 {[%clk 0:02:42.2]} 18... Qd7 {[%clk 0:02:31.9]} 19. Nf3 {[%clk 0:02:36.8]}
19... Ng6 {[%clk 0:02:32.3]} 20. Qb1 {[%clk 0:02:19.9]} 20... dxe4 {[%clk
0:02:30.8]} 21. Qxe4 {[%clk 0:02:18.7]} 21... c5 {[%clk 0:02:32.1]} 22. Qb1
{[%clk 0:02:06.4]} 22... Bxf3 {[%clk 0:02:30.6]} 23. Bxf3 {[%clk 0:02:06.8]}
23... cxd4 {[%clk 0:02:32]} 24. Qe4 {[%clk 0:01:55.9]} 24... Rfd8 {[%clk
0:02:29.3]} 25. Qb7 {[%clk 0:01:37.8]} 25... Ne5 {[%clk 0:02:29.9]} 26. Bg2
{[%clk 0:01:36.4]} 26... Qxb7 {[%clk 0:01:18.1]} 27. Bxb7 {[%clk 0:01:38.3]}
27... Rxc4 {[%clk 0:01:20]} 28. Bxa6 {[%clk 0:01:27]} 28... Rxc1 {[%clk
0:01:20]} 29. Rxc1 {[%clk 0:01:28.9]} 29... g5 {[%clk 0:01:21.5]} 30. Kf1 {[%clk
0:01:10.1]} 30... g4 {[%clk 0:01:20.9]} 31. a4 {[%clk 0:01:04.1]} 31... Kf8
{[%clk 0:01:21.1]} 32. a5 {[%clk 0:00:58.1]} 32... bxa5 {[%clk 0:01:21.7]} 33.
bxa5 {[%clk 0:01:00]} 33... Rd5 {[%clk 0:01:01.4]} 34. Ra1 {[%clk 0:00:53.3]}
34... Nc6 {[%clk 0:01:02.6]} 35. Be2 {[%clk 0:00:44.7]} 35... Nxa5 {[%clk
0:01:03.7]} 36. Bxg4 {[%clk 0:00:43.1]} 36... Nc4 {[%clk 0:00:52.7]} 37. Rd1
{[%clk 0:00:36.7]} 37... d3 {[%clk 0:00:52]} 38. Bf3 {[%clk 0:00:34.9]} 38...
Rd4 {[%clk 0:00:53]} 39. Rb1 {[%clk 0:00:19.9]} 39... Nd2+ {[%clk 0:00:53.8]}
0-1

[Event "*** Titled Tuesday Blitz AM"]
[Site "Chess.com"]
[Date "2020.01.07"]
[Round "3"]
[White "Pilopa"]
[Black "enkhtuul"]
[Result "1-0"]
[WhiteElo "2559"]
[BlackElo "2338"]
[TimeControl "180+2"]
[EndTime "9:36:58 PST"]
[Termination "Pilopa won by resignation"]

1. d4 {[%clk 0:03:01.9]} 1... c5 {[%clk 0:03:00.4]} 2. d5 {[%clk 0:03:02.4]}
2... Nf6 {[%clk 0:03:01.3]} 3. c4 {[%clk 0:03:01.9]} 3... g6 {[%clk 0:03:02.4]}
4. Nc3 {[%clk 0:03:01.2]} 4... Bg7 {[%clk 0:03:03.3]} 5. e4 {[%clk 0:03:02.3]}
5... d6 {[%clk 0:03:04.5]} 6. Nf3 {[%clk 0:03:03.6]} 6... O-O {[%clk 0:03:05.6]}
7. h3 {[%clk 0:03:05.1]} 7... b5 {[%clk 0:03:04.3]} 8. cxb5 {[%clk 0:03:05]}
8... a6 {[%clk 0:03:05.5]} 9. a4 {[%clk 0:03:06.4]} 9... axb5 {[%clk 0:03:03.9]}
10. Bxb5 {[%clk 0:03:08.3]} 10... Ba6 {[%clk 0:03:05.3]} 11. Be3 {[%clk
0:03:09.8]} 11... Bxb5 {[%clk 0:03:05.9]} 12. axb5 {[%clk 0:03:11.7]} 12... Nbd7
{[%clk 0:03:02.6]} 13. O-O {[%clk 0:03:12]} 13... Nb6 {[%clk 0:03:01.4]} 14. Ra6
{[%clk 0:03:09.9]} 14... Nc4 {[%clk 0:03:02]} 15. Qe2 {[%clk 0:03:08.2]} 15...
Nxe3 {[%clk 0:02:55.2]} 16. fxe3 {[%clk 0:03:06.7]} 16... Nd7 {[%clk 0:02:52.5]}
17. Rfa1 {[%clk 0:03:06.2]} 17... Rb8 {[%clk 0:02:53.5]} 18. Nd2 {[%clk
0:02:57.3]} 18... Ne5 {[%clk 0:02:49.5]} 19. Nc4 {[%clk 0:02:57.4]} 19... Nxc4
{[%clk 0:02:46.9]} 20. Qxc4 {[%clk 0:02:59.3]} 20... Bh6 {[%clk 0:02:45.9]} 21.
Qd3 {[%clk 0:02:46.3]} 21... Bg7 {[%clk 0:02:08.9]} 22. Ra7 {[%clk 0:02:45]}
22... f5 {[%clk 0:01:37.2]} 23. Rf1 {[%clk 0:02:36.6]} 23... Bxc3 {[%clk
0:01:14.1]} 24. bxc3 {[%clk 0:02:36]} 24... fxe4 {[%clk 0:01:14.5]} 25. Rxf8+
{[%clk 0:02:34.9]} 25... Qxf8 {[%clk 0:01:01.3]} 26. Qxe4 {[%clk 0:02:34]} 26...
Rxb5 {[%clk 0:00:55.8]} 27. Rxe7 {[%clk 0:02:24]} 27... Rb1+ {[%clk 0:00:42.7]}
28. Kh2 {[%clk 0:02:10.5]} 28... Qf1 {[%clk 0:00:26.3]} 29. Qe6+ {[%clk
0:01:09]} 29... Kf8 {[%clk 0:00:26.6]} 30. Qd7 {[%clk 0:00:41.9]} 30... Qg1+
{[%clk 0:00:22.7]} 31. Kg3 {[%clk 0:00:42.9]} 31... Qe1+ {[%clk 0:00:23]} 32.
Kg4 {[%clk 0:00:43.9]} 32... h5+ {[%clk 0:00:16.4]} 33. Kg5 {[%clk 0:00:41.5]}
33... Qg3+ {[%clk 0:00:12.3]} 34. Kh6 {[%clk 0:00:41.4]} 34... Qxe3+ {[%clk
0:00:09.1]} 35. Rxe3 {[%clk 0:00:41]} 1-0

[Event "*** Titled Tuesday Blitz AM"]
[Site "Chess.com"]
[Date "2020.01.07"]
[Round "3"]
[White "crescentmoon2411"]
[Black "RaunakSadhwani2005"]
[Result "1/2-1/2"]
[WhiteElo "2984"]
[BlackElo "2767"]
[TimeControl "180+2"]
[EndTime "9:36:59 PST"]
[Termination "Game drawn by agreement"]

1. e4 {[%clk 0:02:59.7]} 1... c5 {[%clk 0:03:00.3]} 2. Nf3 {[%clk 0:03:00.6]}
2... d6 {[%clk 0:03:01.8]} 3. Bb5+ {[%clk 0:02:56]} 3... Nc6 {[%clk 0:03:02.7]}
4. O-O {[%clk 0:02:53.8]} 4... Bd7 {[%clk 0:03:04]} 5. Re1 {[%clk 0:02:50.1]}
5... Nf6 {[%clk 0:03:05.5]} 6. c3 {[%clk 0:02:45.8]} 6... a6 {[%clk 0:03:06.9]}
7. Ba4 {[%clk 0:02:43.6]} 7... c4 {[%clk 0:03:01.4]} 8. Qe2 {[%clk 0:02:28.3]}
8... b5 {[%clk 0:03:00.3]} 9. Bc2 {[%clk 0:02:29.2]} 9... Bg4 {[%clk 0:02:59.7]}
10. h3 {[%clk 0:02:18.3]} 10... Bh5 {[%clk 0:02:57.1]} 11. Qe3 {[%clk
0:02:07.7]} 11... e6 {[%clk 0:02:57.9]} 12. b3 {[%clk 0:02:06.3]} 12... cxb3
{[%clk 0:02:30.3]} 13. axb3 {[%clk 0:02:06.7]} 13... Be7 {[%clk 0:02:31.7]} 14.
d4 {[%clk 0:02:04.8]} 14... O-O {[%clk 0:02:32.7]} 15. Nbd2 {[%clk 0:02:00.5]}
15... Qc7 {[%clk 0:02:29.7]} 16. Bb2 {[%clk 0:01:59.9]} 16... Bg6 {[%clk
0:02:27]} 17. Rec1 {[%clk 0:01:41.3]} 17... Rfc8 {[%clk 0:02:25.8]} 18. Nh4
{[%clk 0:01:34.3]} 18... Qa7 {[%clk 0:02:09.2]} 19. Nxg6 {[%clk 0:01:33.8]}
19... hxg6 {[%clk 0:02:11.1]} 20. Bd3 {[%clk 0:01:33.5]} 20... Qb6 {[%clk
0:02:07.3]} 21. Nf1 {[%clk 0:01:31.3]} 21... b4 {[%clk 0:02:05.1]} 22. c4 {[%clk
0:01:30.4]} 22... e5 {[%clk 0:02:04.4]} 23. c5 {[%clk 0:01:16]} 23... dxc5
{[%clk 0:01:23.2]} 24. dxe5 {[%clk 0:01:16.8]} 24... Nd7 {[%clk 0:01:24.8]} 25.
f4 {[%clk 0:01:14.1]} 25... c4 {[%clk 0:01:25.4]} 26. Qxb6 {[%clk 0:01:14.7]}
26... Nxb6 {[%clk 0:01:27.3]} 27. Bxc4 {[%clk 0:01:15.4]} 27... Bc5+ {[%clk
0:01:28.8]} 28. Kh2 {[%clk 0:01:14.7]} 28... Bd4 {[%clk 0:01:30.7]} 29. Bxd4
{[%clk 0:00:50.9]} 29... Nxd4 {[%clk 0:01:32.6]} 30. Ne3 {[%clk 0:00:45.1]}
30... Nxc4 {[%clk 0:01:32.4]} 31. Rxc4 {[%clk 0:00:45.7]} 31... Rxc4 {[%clk
0:01:32.7]} 32. Nxc4 {[%clk 0:00:47.3]} 32... Nxb3 {[%clk 0:01:26.2]} 33. Rb1
{[%clk 0:00:48.4]} 33... Nc5 {[%clk 0:01:18.4]} 34. Rxb4 {[%clk 0:00:49.1]}
34... Nxe4 {[%clk 0:01:19.8]} 35. Nb6 {[%clk 0:00:36.5]} 35... Rb8 {[%clk
0:01:20.9]} 36. Rxe4 {[%clk 0:00:37.3]} 36... Rxb6 {[%clk 0:01:22.2]} 37. Ra4
{[%clk 0:00:27.9]} 37... Kf8 {[%clk 0:01:23.7]} 38. g4 {[%clk 0:00:26.1]} 38...
Ke7 {[%clk 0:01:25.1]} 39. Kg3 {[%clk 0:00:24]} 39... Ke6 {[%clk 0:01:26.6]} 40.
Kh4 {[%clk 0:00:22.1]} 40... f6 {[%clk 0:01:25.5]} 41. exf6 {[%clk 0:00:20.8]}
41... gxf6 {[%clk 0:01:27.4]} 42. Ra5 {[%clk 0:00:21.5]} 42... Kf7 {[%clk
0:01:26.2]} 43. Kg3 {[%clk 0:00:21.2]} 43... Rb3+ {[%clk 0:01:23.4]} 44. Kg2
{[%clk 0:00:21.9]} 44... Rb2+ {[%clk 0:01:25]} 45. Kf3 {[%clk 0:00:23.1]} 45...
Rb3+ {[%clk 0:01:26.1]} 46. Kf2 {[%clk 0:00:20.4]} 1/2-1/2

[Event "*** Titled Tuesday Blitz AM"]
[Site "Chess.com"]
[Date "2020.01.07"]
[Round "3"]
[White "Er_is_geen_hoop_meer"]
[Black "Malev212"]
[Result "1/2-1/2"]
[WhiteElo "2365"]
[BlackElo "2604"]
[TimeControl "180+2"]
[EndTime "9:37:01 PST"]
[Termination "Game drawn by repetition"]

1. b4 {[%clk 0:03:01.9]} 1... Nf6 {[%clk 0:02:59.3]} 2. Bb2 {[%clk 0:03:01.7]}
2... g6 {[%clk 0:03:01.2]} 3. a4 {[%clk 0:03:01.8]} 3... Bg7 {[%clk 0:03:02.2]}
4. c4 {[%clk 0:03:03.1]} 4... O-O {[%clk 0:03:03.5]} 5. b5 {[%clk 0:03:04.4]}
5... d6 {[%clk 0:03:01.3]} 6. Nf3 {[%clk 0:03:02.2]} 6... e5 {[%clk 0:03:02]} 7.
g3 {[%clk 0:03:03.1]} 7... Nbd7 {[%clk 0:03:02.3]} 8. Bg2 {[%clk 0:03:04.4]}
8... e4 {[%clk 0:03:01.6]} 9. Nd4 {[%clk 0:03:05.2]} 9... Re8 {[%clk 0:03:01.8]}
10. O-O {[%clk 0:03:06.1]} 10... Nc5 {[%clk 0:03:01.9]} 11. Nc3 {[%clk 0:03:07]}
11... h5 {[%clk 0:03:02.3]} 12. h3 {[%clk 0:03:07.7]} 12... a5 {[%clk
0:03:00.8]} 13. Nb3 {[%clk 0:03:04.9]} 13... Nfd7 {[%clk 0:02:43.8]} 14. Qc2
{[%clk 0:02:48.4]} 14... Nxb3 {[%clk 0:02:41.1]} 15. Qxb3 {[%clk 0:02:50.3]}
15... Nc5 {[%clk 0:02:41.6]} 16. Qc2 {[%clk 0:02:51.8]} 16... Bf5 {[%clk
0:02:37.7]} 17. Nd5 {[%clk 0:02:52.9]} 17... c6 {[%clk 0:02:19.8]} 18. Ne3
{[%clk 0:02:49.8]} 18... Bxb2 {[%clk 0:02:08.5]} 19. Qxb2 {[%clk 0:02:51.7]}
19... Be6 {[%clk 0:02:09.2]} 20. Qc3 {[%clk 0:02:45.2]} 20... h4 {[%clk
0:02:09.3]} 21. g4 {[%clk 0:02:42.7]} 21... Qg5 {[%clk 0:02:09.5]} 22. Ra3
{[%clk 0:02:33.4]} 22... cxb5 {[%clk 0:02:05.5]} 23. axb5 {[%clk 0:02:28.7]}
23... b6 {[%clk 0:02:03.9]} 24. d4 {[%clk 0:02:29.8]} 24... exd3 {[%clk
0:01:58.5]} 25. exd3 {[%clk 0:02:31.7]} 25... Rac8 {[%clk 0:01:43.1]} 26. f4
{[%clk 0:02:32.6]} 26... Qh6 {[%clk 0:01:35.4]} 27. g5 {[%clk 0:02:32.1]} 27...
Qg7 {[%clk 0:01:34]} 28. d4 {[%clk 0:02:32.8]} 28... Nd7 {[%clk 0:01:30.6]} 29.
Kh2 {[%clk 0:02:04.6]} 29... Re7 {[%clk 0:01:18.4]} 30. Bc6 {[%clk 0:01:52.2]}
30... Nb8 {[%clk 0:01:03.9]} 31. Bd5 {[%clk 0:01:45.9]} 31... Rce8 {[%clk
0:00:59.1]} 32. Rf2 {[%clk 0:01:39]} 32... Nd7 {[%clk 0:00:54.8]} 33. Raa2
{[%clk 0:01:31.5]} 33... Bxd5 {[%clk 0:00:50.6]} 34. Nxd5 {[%clk 0:01:32.2]}
34... Re4 {[%clk 0:00:52.1]} 35. Rad2 {[%clk 0:01:29]} 35... Qh8 {[%clk
0:00:50.1]} 36. f5 {[%clk 0:01:16]} 36... Qh5 {[%clk 0:00:45.6]} 37. fxg6 {[%clk
0:01:12.8]} 37... fxg6 {[%clk 0:00:44.2]} 38. Nf4 {[%clk 0:01:09.6]} 38... Qxg5
{[%clk 0:00:38.6]} 39. Nxg6 {[%clk 0:01:09.2]} 39... Re3 {[%clk 0:00:35.6]} 40.
Rg2 {[%clk 0:01:01.5]} 40... Qxg2+ {[%clk 0:00:35.5]} 41. Rxg2 {[%clk
0:01:03.4]} 41... Rxc3 {[%clk 0:00:36.2]} 42. Ne5+ {[%clk 0:01:04.9]} 42... Kh7
{[%clk 0:00:31.9]} 43. Nxd7 {[%clk 0:01:06.8]} 43... Ree3 {[%clk 0:00:32.7]} 44.
Nf6+ {[%clk 0:01:07.5]} 44... Kh6 {[%clk 0:00:32.1]} 45. Ng8+ {[%clk 0:01:05]}
45... Kh7 {[%clk 0:00:31.1]} 46. Nf6+ {[%clk 0:01:06.9]} 46... Kh6 {[%clk
0:00:32.2]} 47. Ng4+ {[%clk 0:01:04.7]} 47... Kh5 {[%clk 0:00:33.2]} 48. Nf6+
{[%clk 0:01:00.4]} 48... Kh6 {[%clk 0:00:33.9]} 1/2-1/2

[Event "*** Titled Tuesday Blitz AM"]
[Site "Chess.com"]
[Date "2020.01.07"]
[Round "3"]
[White "XxPetroffsxX"]
[Black "ShahMatKanal"]
[Result "1-0"]
[WhiteElo "1986"]
[BlackElo "2510"]
[TimeControl "180+2"]
[EndTime "9:37:04 PST"]
[Termination "XxPetroffsxX won by checkmate"]

1. d4 {[%clk 0:03:01.9]} 1... d6 {[%clk 0:02:58.6]} 2. e4 {[%clk 0:02:59.3]}
2... g6 {[%clk 0:02:55.5]} 3. Nc3 {[%clk 0:02:59.8]} 3... Bg7 {[%clk 0:02:55.4]}
4. Nge2 {[%clk 0:03:00.6]} 4... Nf6 {[%clk 0:02:51.6]} 5. h3 {[%clk 0:03:01.3]}
5... O-O {[%clk 0:02:48.9]} 6. g4 {[%clk 0:03:02.7]} 6... c5 {[%clk 0:02:46.9]}
7. dxc5 {[%clk 0:02:59.4]} 7... Qa5 {[%clk 0:02:39.1]} 8. Bg2 {[%clk 0:02:59.9]}
8... Qxc5 {[%clk 0:02:29.6]} 9. O-O {[%clk 0:02:54.2]} 9... a6 {[%clk
0:02:25.2]} 10. Be3 {[%clk 0:02:53.5]} 10... Qc7 {[%clk 0:02:24.7]} 11. g5
{[%clk 0:02:47.7]} 11... Nfd7 {[%clk 0:02:18.3]} 12. Nd5 {[%clk 0:02:48.2]}
12... Qd8 {[%clk 0:02:19.5]} 13. Bd4 {[%clk 0:02:46.5]} 13... e5 {[%clk
0:01:58.2]} 14. Be3 {[%clk 0:02:45.5]} 14... Nc6 {[%clk 0:01:56.3]} 15. c3
{[%clk 0:02:45]} 15... Nc5 {[%clk 0:01:50.7]} 16. b4 {[%clk 0:02:29.2]} 16...
Ne6 {[%clk 0:01:49.5]} 17. Qd2 {[%clk 0:02:26]} 17... f6 {[%clk 0:00:31.5]} 18.
gxf6 {[%clk 0:02:24.5]} 18... Bxf6 {[%clk 0:00:32.7]} 19. Nxf6+ {[%clk
0:02:13.2]} 19... Qxf6 {[%clk 0:00:34.6]} 20. f4 {[%clk 0:02:11]} 20... Qe7
{[%clk 0:00:21.4]} 21. f5 {[%clk 0:02:10.2]} 21... Nc7 {[%clk 0:00:14.2]} 22.
Bh6 {[%clk 0:02:10]} 22... Rf7 {[%clk 0:00:10]} 23. fxg6 {[%clk 0:02:10.7]}
23... hxg6 {[%clk 0:00:11.2]} 24. Rxf7 {[%clk 0:02:10.5]} 24... Qxf7 {[%clk
0:00:13.1]} 25. Rf1 {[%clk 0:02:10.4]} 25... Qe7 {[%clk 0:00:13]} 26. Bg5 {[%clk
0:02:07]} 26... Qe6 {[%clk 0:00:10.2]} 27. Rf6 {[%clk 0:02:06.6]} 27... Qe8
{[%clk 0:00:10.7]} 28. Qxd6 {[%clk 0:02:03.7]} 28... Ne6 {[%clk 0:00:08.4]} 29.
h4 {[%clk 0:01:50.9]} 29... Bd7 {[%clk 0:00:06.3]} 30. Bh3 {[%clk 0:01:51.1]}
30... Nf8 {[%clk 0:00:06.9]} 31. Bxd7 {[%clk 0:01:47.1]} 31... Nxd7 {[%clk
0:00:06.5]} 32. Rxg6+ {[%clk 0:01:46.8]} 32... Kh7 {[%clk 0:00:06.9]} 33. Rh6+
{[%clk 0:01:46.7]} 33... Kg7 {[%clk 0:00:08.3]} 34. Ng3 {[%clk 0:01:40.3]} 34...
Qf7 {[%clk 0:00:04.6]} 35. Nf5+ {[%clk 0:01:39.6]} 35... Kg8 {[%clk 0:00:05.9]}
36. Rg6+ {[%clk 0:01:38]} 36... Kh8 {[%clk 0:00:07.2]} 37. Rg7 {[%clk
0:01:25.4]} 37... Qh5 {[%clk 0:00:08.5]} 38. Bf6 {[%clk 0:01:15.3]} 38... Nxf6
{[%clk 0:00:06.9]} 39. Qxf6 {[%clk 0:01:16]} 39... Qd1+ {[%clk 0:00:06.8]} 40.
Kh2 {[%clk 0:01:16.3]} 40... Qe2+ {[%clk 0:00:03.9]} 41. Rg2+ {[%clk 0:01:16.5]}
41... Kh7 {[%clk 0:00:05.2]} 42. Qg7# {[%clk 0:01:17.1]} 1-0

[Event "*** Titled Tuesday Blitz AM"]
[Site "Chess.com"]
[Date "2020.01.07"]
[Round "3"]
[White "Kriari"]
[Black "AwareIdea"]
[Result "1-0"]
[WhiteElo "2914"]
[BlackElo "2516"]
[TimeControl "180+2"]
[EndTime "9:37:06 PST"]
[Termination "Kriari won by resignation"]

1. e4 {[%clk 0:03:01.9]} 1... e5 {[%clk 0:03:00.3]} 2. Nf3 {[%clk 0:03:03.3]}
2... Nc6 {[%clk 0:03:01.1]} 3. Nc3 {[%clk 0:03:05.2]} 3... Nf6 {[%clk
0:03:02.1]} 4. Bb5 {[%clk 0:03:06.9]} 4... Bd6 {[%clk 0:03:02.2]} 5. d3 {[%clk
0:03:07.4]} 5... O-O {[%clk 0:03:02.6]} 6. a3 {[%clk 0:03:09.1]} 6... a6 {[%clk
0:03:03.8]} 7. Bc4 {[%clk 0:03:09.8]} 7... b5 {[%clk 0:03:05]} 8. Ba2 {[%clk
0:03:11.4]} 8... Re8 {[%clk 0:03:06.3]} 9. g4 {[%clk 0:03:13.1]} 9... Rf8 {[%clk
0:02:41.3]} 10. Rg1 {[%clk 0:03:07.3]} 10... Nd4 {[%clk 0:02:38.3]} 11. g5
{[%clk 0:03:06.5]} 11... Ne8 {[%clk 0:02:34.9]} 12. g6 {[%clk 0:03:05.7]} 12...
hxg6 {[%clk 0:02:21.4]} 13. Rxg6 {[%clk 0:03:06.6]} 13... Ne6 {[%clk 0:02:20.7]}
14. Bg5 {[%clk 0:02:43.4]} 14... Be7 {[%clk 0:02:16.7]} 15. Bxe7 {[%clk
0:02:44.1]} 15... Qxe7 {[%clk 0:02:17.7]} 16. Nd5 {[%clk 0:02:45.8]} 16... Qd6
{[%clk 0:02:12.7]} 17. Rg3 {[%clk 0:02:31.7]} 17... Bb7 {[%clk 0:01:51.3]} 18.
Nh4 {[%clk 0:02:26.6]} 18... Bxd5 {[%clk 0:01:34.7]} 19. Nf5 {[%clk 0:02:26.1]}
19... Qc5 {[%clk 0:01:23.1]} 20. d4 {[%clk 0:02:27.5]} 20... exd4 {[%clk
0:01:20.3]} 21. b4 {[%clk 0:02:28.9]} 21... Bxe4 {[%clk 0:00:41.2]} 22. Nh6+
{[%clk 0:02:30]} 22... Kh7 {[%clk 0:00:41.7]} 23. bxc5 {[%clk 0:02:31.9]} 23...
gxh6 {[%clk 0:00:39.5]} 24. Qh5 {[%clk 0:02:10.2]} 24... Bg6 {[%clk 0:00:31.3]}
25. Qe5 {[%clk 0:01:48.3]} 25... d6 {[%clk 0:00:31.3]} 26. cxd6 {[%clk 0:01:50]}
26... cxd6 {[%clk 0:00:28.3]} 27. Qd5 {[%clk 0:01:40.8]} 27... Rc8 {[%clk
0:00:28]} 28. Rxg6 {[%clk 0:01:40.8]} 28... Kxg6 {[%clk 0:00:26.4]} 29. Qe4+
{[%clk 0:01:38.5]} 29... Kf6 {[%clk 0:00:25.5]} 30. Qh4+ {[%clk 0:01:30.4]}
30... Kg6 {[%clk 0:00:14.6]} 31. Kd2 {[%clk 0:01:29.4]} 31... N8g7 {[%clk
0:00:13.6]} 32. Rg1+ {[%clk 0:01:29.9]} 32... Kh7 {[%clk 0:00:13.4]} 33. Bd5
{[%clk 0:01:25.4]} 33... Rc7 {[%clk 0:00:11]} 34. Qf6 {[%clk 0:01:23.3]} 34...
Rfc8 {[%clk 0:00:10.1]} 35. Be4+ {[%clk 0:01:23.2]} 35... Kg8 {[%clk 0:00:10]}
36. Qxh6 {[%clk 0:01:23.9]} 36... Kf8 {[%clk 0:00:11.3]} 37. Rxg7 {[%clk
0:01:22.7]} 37... Nxg7 {[%clk 0:00:10.5]} 38. Qh8+ {[%clk 0:01:23.8]} 38... Ke7
{[%clk 0:00:11.4]} 39. Qxg7 {[%clk 0:01:25.7]} 39... Rc3 {[%clk 0:00:12]} 40. h4
{[%clk 0:01:23.6]} 40... R8c5 {[%clk 0:00:11.3]} 41. Bg6 {[%clk 0:01:19.9]}
41... Kd7 {[%clk 0:00:08.3]} 42. Qxf7+ {[%clk 0:01:19.7]} 42... Kc6 {[%clk
0:00:09.6]} 43. h5 {[%clk 0:01:18.4]} 43... Rxa3 {[%clk 0:00:07.1]} 44. h6
{[%clk 0:01:18.6]} 44... Ra1 {[%clk 0:00:07.4]} 45. h7 {[%clk 0:01:18.8]} 45...
Rh1 {[%clk 0:00:08.4]} 46. Be4+ {[%clk 0:01:19.5]} 1-0